[Event "DPEM German Cup 2024"]
[Site "Bad Wildungen"]
[Date "2024.08.02"]
[Round "3.5"]
[White "Namyslo, Holger"]
[Black "Buettner, Thomas"]
[Result "1-0"]
[Annotator "RC"]
[ECO "B30"]
[WhiteElo "2131"]
[BlackElo "1979"]
[PlyCount "87"]
[EventDate "2024.07.31"]
[EventCountry "GER"]
[SourceTitle "playchess.com"]
[Source "ChessBase"]
[SourceQuality "1"]
[TimeControl "40/5400+30:900+30"]

1. e4 {[%emt 0:00:12]} c5 {[%emt 0:00:05]} 2. Nf3 {[%emt 0:00:06]} Nc6 {[%emt 0:00:04]} 3. b4 {[%emt 0:00:44]} Nxb4 {[%emt 0:00:04]} 4. c3 {[%emt 0:00:07]} Nc6 {[%emt 0:00:03]} 5. d4 {[%emt 0:00:04]} cxd4 {[%emt 0:00:03]} 6. cxd4 {[%emt 0:00:05]} e6 {[%emt 0:00:04]} 7. Bd3 {[%emt 0:04:00]} Bb4+ {[%emt 0:03:07]} 8. Kf1 {[%emt 0:03:53]} d5 {[%emt 0:03:21]} 9. e5 {[%emt 0:00:48]} f5 {[%emt 0:09:04]} 10. h4 {[%emt 0:03:36]} Bd7 {[%emt 0:15:24]} 11. h5 {[%emt 0:04:16]} Qb6 {[%emt 0:03:57]} 12. Be2 {[%emt 0:08:46]} Nd8 {[%emt 0:06:22]} 13. a4 {[%emt 0:08:56]} Ne7 {[%emt 0:08:00]} 14. Rh3 {[%emt 0:04:15]} Rc8 {[%emt 0:03:10]} 15. h6 {[%emt 0:03:12]} g6 {[%emt 0:05:23]} 16. Bg5 {[%emt 0:01:01]} Nf7 {[%emt 0:00:29]} 17. Bf6 {[%emt 0:07:40]} O-O {[%emt 0:06:10]} 18. a5 {[%emt 0:08:49]} Qc7 {[%emt 0:00:41]} 19. a6 {[%emt 0:01:07]} b6 {[%emt 0:00:29]} 20. Na3 {[%emt 0:02:23]} Rfe8 {[%emt 0:02:42]} 21. Nb5 {[%emt 0:04:08]} Qc2 {[%emt 0:06:43]} 22. Nxa7 {[%emt 0:00:47]} Qxd1+ {[%emt 0:02:06]} 23. Rxd1 {[%emt 0:00:03]} Rc2 {[%emt 0:02:48]} 24. Ne1 {[%emt 0:04:19]} Rc7 {[%emt 0:04:12]} 25. Nb5 {[%emt 0:00:44]} Bxb5 {[%emt 0:00:34]} 26. Bxb5 {[%emt 0:00:03]} Rec8 {[%emt 0:00:22]} 27. Nd3 {[%emt 0:00:34]} Ba5 {[%emt 0:00:14]} 28. Nf4 {[%emt 0:02:54]} Nd8 {[%emt 0:00:15]} 29. Rhd3 {[%emt 0:03:01]} Kf7 {[%emt 0:00:55]} 30. Nh3 {[%emt 0:00:25]} Nec6 {[%emt 0:03:33]} 31. Ng5+ {[%emt 0:00:24]} Kg8 {[%emt 0:00:05]} 32. Rc1 {[%emt 0:03:21]} Na7 {[%emt 0:02:46]} 33. Rxc7 {[%emt 0:00:36]} Rxc7 {[%emt 0:00:04]} 34. Ba4 {[%emt 0:03:53]} b5 {[%emt 0:02:20]} 35. Bxd8 {[%emt 0:02:23]} Rc1+ {[%emt 0:00:08]} 36. Rd1 {[%emt 0:00:03]} Rxd1+ {[%emt 0:00:05]} 37. Bxd1 {[%emt 0:00:03]} Bxd8 {[%emt 0:00:05]} 38. Nxe6 {[%emt 0:00:04]} Bb6 {[%emt 0:00:24]} 39. Bb3 {[%emt 0:00:28]} Kf7 {[%emt 0:00:24]} 40. Bxd5 {[%emt 0:00:38]} Ke7 {[%emt 0:00:02]} 41. Ke2 {[%emt 0:16:22]} Nc6 {[%emt 0:16:21]} 42. Bxc6 {[%emt 0:02:16]} Kxe6 {[%emt 0:00:05]} 43. Kd3 {[%emt 0:00:29]} b4 {[%emt 0:00:19]} 44. Ba4 {[%emt 0:02:00]} 1-0

[Event "DPEM German Cup 2024"]
[Site "Bad Wildungen"]
[Date "2024.08.02"]
[Round "3.6"]
[White "Skabs, Denis"]
[Black "Koch, Yannick"]
[Result "1-0"]
[Annotator "RC"]
[ECO "B11"]
[WhiteElo "2096"]
[BlackElo "1991"]
[PlyCount "53"]
[EventDate "2024.07.31"]
[EventCountry "GER"]
[SourceTitle "playchess.com"]
[Source "ChessBase"]
[SourceQuality "1"]
[TimeControl "40/5400+30:900+30"]

1. e4 {[%emt 0:00:02]} c6 {[%emt 0:00:35]} 2. Nf3 {[%emt 0:00:06]} d5 {[%emt 0:01:24]} 3. Nc3 {[%emt 0:00:05]} dxe4 {[%emt 0:00:59]} 4. Nxe4 {[%emt 0:00:06]} Nf6 {[%emt 0:01:09]} 5. Qe2 {[%emt 0:00:06]} Bf5 {[%emt 0:00:39]} 6. Nxf6+ {[%emt 0:00:17]} gxf6 {[%emt 0:00:04]} 7. d3 {[%emt 0:00:05]} Bg4 {[%emt 0:06:27]} 8. h3 {[%emt 0:06:14]} Bxf3 {[%emt 0:02:42]} 9. Qxf3 {[%emt 0:01:38]} Qd5 {[%emt 0:00:24]} 10. Be2 {[%emt 0:01:51]} Rg8 {[%emt 0:04:36]} 11. O-O {[%emt 0:04:50]} Nd7 {[%emt 0:08:02]} 12. Qxd5 {[%emt 0:16:09]} cxd5 {[%emt 0:01:22]} 13. d4 {[%emt 0:04:57]} e6 {[%emt 0:05:48]} 14. b3 {[%emt 0:01:54]} Bb4 {[%emt 0:05:12]} 15. Bb2 {[%emt 0:01:10]} Rc8 {[%emt 0:00:46]} 16. c4 {[%emt 0:05:57]} dxc4 {[%emt 0:09:35]} 17. bxc4 {[%emt 0:00:50]} Nb6 {[%emt 0:00:42]} 18. Rac1 {[%emt 0:04:17]} Ke7 {[%emt 0:01:10]} 19. Ba1 {[%emt 0:18:55]} Bd2 {[%emt 0:13:41]} 20. Rb1 {[%emt 0:01:29]} Rc7 {[%emt 0:00:41]} 21. Rfd1 {[%emt 0:00:12]} Bf4 {[%emt 0:00:43]} 22. Rb4 {[%emt 0:03:47]} Rgc8 {[%emt 0:02:09]} 23. g3 {[%emt 0:00:34]} Bh6 {[%emt 0:00:35]} 24. d5 {[%emt 0:07:18]} Rd8 {[%emt 0:11:35]} 25. Bd4 {[%emt 0:00:57]} Nc8 {[%emt 0:02:14]} 26. dxe6 {[%emt 0:02:57]} Kxe6 {[%emt 0:01:08]} 27. Bg4+ {[%emt 0:17:17]} 1-0

[Event "DPEM German Cup 2024"]
[Site "Bad Wildungen"]
[Date "2024.08.02"]
[Round "3.7"]
[White "Hinrichs, Paul"]
[Black "Windmueller, Simon"]
[Result "0-1"]
[Annotator "ChessBase"]
[ECO "D95"]
[WhiteElo "2262"]
[BlackElo "1941"]
[PlyCount "166"]
[EventDate "2024.07.31"]
[EventCountry "GER"]
[SourceTitle "playchess.com"]
[Source "ChessBase"]
[SourceQuality "1"]
[TimeControl "40/5400+30:900+30"]

1. d4 {[%emt 0:00:09]} Nf6 {[%emt 0:00:38]} 2. c4 {[%emt 0:00:45]} g6 {[%emt 0:00:15]} 3. Nc3 {[%emt 0:00:16]} d5 {[%emt 0:00:12]} 4. e3 {[%emt 0:05:23]} Bg7 {[%emt 0:00:37]} 5. Nf3 {[%emt 0:02:19]} O-O {[%emt 0:00:35]} 6. Qb3 {[%emt 0:01:44]} c6 {[%emt 0:05:36]} 7. a4 {[%emt 0:07:10]} a5 {[%emt 0:01:46]} 8. Bd2 {[%emt 0:00:44]} e6 {[%emt 0:25:54]} 9. Be2 {[%emt 0:01:27]} Nbd7 {[%emt 0:01:42]} 10. cxd5 {[%emt 0:00:41]} exd5 {[%emt 0:00:11]} 11. O-O {[%emt 0:02:51]} Qe7 {[%emt 0:02:11]} 12. Qa3 {[%emt 0:01:06]} Re8 {[%emt 0:00:46]} 13. Qxe7 {[%emt 0:01:06]} Rxe7 {[%emt 0:00:08]} 14. Rfb1 {[%emt 0:00:57]} Bf8 {[%emt 0:02:12]} 15. b4 {[%emt 0:02:22]} axb4 {[%emt 0:00:10]} 16. Nd1 {[%emt 0:00:05]} Ne4 {[%emt 0:00:33]} 17. Bxb4 {[%emt 0:00:10]} Re8 {[%emt 0:00:15]} 18. Bxf8 {[%emt 0:01:28]} Kxf8 {[%emt 0:00:39]} 19. a5 {[%emt 0:00:57]} h6 {[%emt 0:07:44]} 20. Bd3 {[%emt 0:04:56]} Nd6 {[%emt 0:00:11]} 21. Nd2 {[%emt 0:01:47]} Ra7 {[%emt 0:01:01]} 22. Nb3 {[%emt 0:00:46]} f5 {[%emt 0:06:25]} 23. Rc1 {[%emt 0:03:37]} Nb8 {[%emt 0:04:11]} 24. Nc3 {[%emt 0:00:49]} Be6 {[%emt 0:02:59]} 25. Na4 {[%emt 0:01:17]} Nd7 {[%emt 0:01:08]} 26. Nac5 {[%emt 0:02:54]} Nxc5 {[%emt 0:01:22]} 27. Rxc5 {[%emt 0:03:13]} Rea8 {[%emt 0:03:09]} 28. Rb1 {[%emt 0:01:44]} Nc4 {[%emt 0:01:14]} 29. h4 {[%emt 0:00:40]} g5 {[%emt 0:01:38]} 30. hxg5 {[%emt 0:01:12]} hxg5 {[%emt 0:00:19]} 31. g3 {[%emt 0:00:12]} Ke7 {[%emt 0:05:22]} 32. Bxc4 {[%emt 0:27:55]} dxc4 {[%emt 0:00:07]} 33. Nd2 {[%emt 0:00:02]} Bd5 {[%emt 0:00:21]} 34. Nxc4 {[%emt 0:08:47]} Rh8 {[%emt 0:00:44]} 35. f3 {[%emt 0:00:11]} Bxf3 {[%emt 0:00:26]} 36. Rf1 {[%emt 0:02:25]} Rh1+ {[%emt 0:02:54]} 37. Kf2 {[%emt 0:01:04]} Rxf1+ {[%emt 0:00:07]} 38. Kxf1 {[%emt 0:00:03]} Bd5 {[%emt 0:00:16]} 39. Nb6 {[%emt 0:00:20]} Ke6 {[%emt 0:00:43]} 40. Ke2 {[%emt 0:00:12]} Ra6 {[%emt 0:00:57]} 41. Kd3 {[%emt 0:17:13]} Be4+ {[%emt 0:15:34]} 42. Kc4 {[%emt 0:01:26]} Kf6 {[%emt 0:00:06]} 43. Kb4 {[%emt 0:00:34]} Kg6 {[%emt 0:00:06]} 44. Nd7 {[%emt 0:04:04]} Ra8 {[%emt 0:00:21]} 45. Rc1 {[%emt 0:00:59]} Rh8 {[%emt 0:01:53]} 46. Kc5 {[%emt 0:00:44]} Rh3 {[%emt 0:00:29]} 47. Kb6 {[%emt 0:05:29]} Rxg3 {[%emt 0:00:44]} 48. Nc5 {[%emt 0:00:08]} Rxe3 {[%emt 0:01:23]} 49. Kxb7 {[%emt 0:02:10]} Bd5 {[%emt 0:00:06]} 50. a6 {[%emt 0:01:11]} Re7+ {[%emt 0:00:01]} 51. Kb6 {[%emt 0:00:20]} f4 {[%emt 0:00:39]} 52. a7 {[%emt 0:00:00]} Re8 {[%emt 0:00:00]} 53. Na6 {[%emt 0:00:00]} Ra8 {[%emt 0:00:00]} 54. Nc7 {[%emt 0:00:00]} Rxa7 {[%emt 0:00:00]} 55. Nxd5 {[%emt 0:00:00]} cxd5 {[%emt 0:00:00]} 56. Kxa7 {[%emt 0:00:00]} g4 {[%emt 0:00:00]} 57. Rc8 {[%emt 0:00:00]} Kf5 {[%emt 0:00:00]} 58. Kb6 {[%emt 0:00:00]} f3 {[%emt 0:00:00]} 59. Kc5 {[%emt 0:02:17]} g3 {[%emt 0:00:00]} 60. Kxd5 {[%emt 0:00:38]} g2 {[%emt 0:00:00]} 61. Rf8+ {[%emt 0:00:58]} Kg4 {[%emt 0:00:00]} 62. Ke4 {[%emt 0:01:52]} f2 {[%emt 0:00:00]} 63. Rxf2 {[%emt 0:00:08]} g1=Q {[%emt 0:00:00]} 64. Rf4+ {[%emt 0:00:03]} Kg5 {[%emt 0:00:00]} 65. Rf5+ {[%emt 0:00:06]} Kg6 {[%emt 0:00:00]} 66. Rf3 {[%emt 0:00:22]} Qb1+ {[%emt 0:00:00]} 67. Rd3 {[%emt 0:00:50]} Qb4 {[%emt 0:01:04]} 68. Ke3 {[%emt 0:01:09]} Kf5 {[%emt 0:00:22]} 69. Ke2 {[%emt 0:00:54]} Ke4 {[%emt 0:00:23]} 70. Re3+ {[%emt 0:00:36]} Kxd4 {[%emt 0:00:02]} 71. Kf3 {[%emt 0:00:11]} Qf8+ {[%emt 0:00:51]} 72. Ke2 {[%emt 0:00:01]} Qf5 {[%emt 0:00:18]} 73. Rg3 {[%emt 0:00:14]} Qh5+ {[%emt 0:01:01]} 74. Kf2 {[%emt 0:00:25]} Ke4 {[%emt 0:00:44]} 75. Rc3 {[%emt 0:00:19]} Qh2+ {[%emt 0:01:17]} 76. Ke1 {[%emt 0:00:10]} Qb2 {[%emt 0:00:56]} 77. Rg3 {[%emt 0:00:06]} Qc2 {[%emt 0:00:30]} 78. Rh3 {[%emt 0:00:48]} Kf4 {[%emt 0:00:27]} 79. Kf1 {[%emt 0:00:17]} Qd2 {[%emt 0:00:33]} 80. Rh6 {[%emt 0:01:12]} Kg5 {[%emt 0:02:00]} 81. Re6 {[%emt 0:01:15]} Qf4+ {[%emt 0:00:47]} 82. Ke1 {[%emt 0:00:04]} Qb4+ {[%emt 0:00:49]} 83. Kf2 {[%emt 0:00:10]} Qh4+ {[%emt 0:00:48]} 0-1

[Event "DPEM German Cup 2024"]
[Site "Bad Wildungen"]
[Date "2024.08.02"]
[Round "3.8"]
[White "Malek, Daniel"]
[Black "Kampmann, Heiko"]
[Result "1/2-1/2"]
[Annotator "ChessBase"]
[ECO "E17"]
[WhiteElo "2265"]
[BlackElo "2178"]
[PlyCount "127"]
[EventDate "2024.07.31"]
[EventCountry "GER"]
[SourceTitle "playchess.com"]
[Source "ChessBase"]
[SourceQuality "1"]
[TimeControl "40/5400+30:900+30"]

1. c4 {[%emt 0:00:02]} e6 {[%emt 0:00:11]} 2. Nf3 {[%emt 0:00:11]} d5 {[%emt 0:00:12]} 3. g3 {[%emt 0:00:17]} Nf6 {[%emt 0:00:19]} 4. Bg2 {[%emt 0:00:06]} Be7 {[%emt 0:00:12]} 5. O-O {[%emt 0:00:08]} O-O {[%emt 0:00:13]} 6. b3 {[%emt 0:00:10]} b6 {[%emt 0:02:13]} 7. d4 {[%emt 0:01:12]} Bb7 {[%emt 0:01:27]} 8. Nc3 {[%emt 0:00:16]} Nbd7 {[%emt 0:01:02]} 9. Bb2 {[%emt 0:02:15]} c5 {[%emt 0:01:02]} 10. Ne1 {[%emt 0:02:01]} Rc8 {[%emt 0:07:28]} 11. cxd5 {[%emt 0:01:40]} exd5 {[%emt 0:00:48]} 12. dxc5 {[%emt 0:03:35]} Nxc5 {[%emt 0:00:38]} 13. Rc1 {[%emt 0:04:48]} Nfe4 {[%emt 0:02:55]} 14. Nd3 {[%emt 0:02:29]} Nxc3 {[%emt 0:12:12]} 15. Bxc3 {[%emt 0:01:08]} Ne4 {[%emt 0:01:20]} 16. Bd4 {[%emt 0:05:00]} Rxc1 {[%emt 0:07:26]} 17. Qxc1 {[%emt 0:00:15]} Bf6 {[%emt 0:00:46]} 18. Qb2 {[%emt 0:06:59]} Bxd4 {[%emt 0:08:19]} 19. Qxd4 {[%emt 0:00:09]} Qf6 {[%emt 0:00:43]} 20. Qxf6 {[%emt 0:00:49]} Nxf6 {[%emt 0:00:08]} 21. Rc1 {[%emt 0:01:58]} Rc8 {[%emt 0:00:30]} 22. Rxc8+ {[%emt 0:00:13]} Bxc8 {[%emt 0:00:09]} 23. Nb4 {[%emt 0:03:45]} Bb7 {[%emt 0:01:28]} 24. Kf1 {[%emt 0:05:14]} Kf8 {[%emt 0:02:43]} 25. Ke1 {[%emt 0:00:10]} Ke7 {[%emt 0:02:41]} 26. Kd2 {[%emt 0:03:06]} Kd6 {[%emt 0:00:39]} 27. Bf3 {[%emt 0:02:33]} Ne4+ {[%emt 0:05:18]} 28. Ke3 {[%emt 0:01:41]} Nc3 {[%emt 0:05:09]} 29. Kd4 {[%emt 0:01:36]} Nb5+ {[%emt 0:01:06]} 30. Kd3 {[%emt 0:01:40]} Ke5 {[%emt 0:04:08]} 31. Bg2 {[%emt 0:03:01]} Nc7 {[%emt 0:03:46]} 32. f4+ {[%emt 0:00:29]} Kd6 {[%emt 0:00:10]} 33. Bf3 {[%emt 0:01:19]} Ne6 {[%emt 0:00:59]} 34. Nc2 {[%emt 0:01:17]} a5 {[%emt 0:06:50]} 35. Bg4 {[%emt 0:06:34]} Nc5+ {[%emt 0:01:28]} 36. Ke3 {[%emt 0:03:02]} g6 {[%emt 0:02:59]} 37. Nd4 {[%emt 0:01:07]} Ba6 {[%emt 0:03:29]} 38. a3 {[%emt 0:03:04]} Ne4 {[%emt 0:02:52]} 39. Bf3 {[%emt 0:06:21]} Nc3 {[%emt 0:01:25]} 40. Nc2 {[%emt 0:09:29]} Kc5 {[%emt 0:02:34]} 41. Kd2 {[%emt 0:16:15]} Nb1+ {[%emt 0:15:49]} 42. Kc1 {[%emt 0:00:10]} Nc3 {[%emt 0:00:19]} 43. e3 {[%emt 0:04:22]} Bf1 {[%emt 0:01:57]} 44. Kb2 {[%emt 0:02:22]} Nb5 {[%emt 0:00:35]} 45. a4 {[%emt 0:02:59]} Na7 {[%emt 0:00:55]} 46. Nd4 {[%emt 0:01:11]} Nc6 {[%emt 0:00:27]} 47. Nxc6 {[%emt 0:00:41]} Kxc6 {[%emt 0:00:05]} 48. Kc3 {[%emt 0:00:04]} Kc5 {[%emt 0:00:13]} 49. g4 {[%emt 0:00:55]} Bh3 {[%emt 0:03:05]} 50. g5 {[%emt 0:00:23]} Bf5 {[%emt 0:00:20]} 51. h4 {[%emt 0:00:14]} Be6 {[%emt 0:00:43]} 52. h5 {[%emt 0:00:13]} Bf5 {[%emt 0:00:11]} 53. h6 {[%emt 0:01:01]} Be6 {[%emt 0:00:10]} 54. Be2 {[%emt 0:01:42]} Bd7 {[%emt 0:02:13]} 55. Bd3 {[%emt 0:00:22]} b5 {[%emt 0:00:28]} 56. axb5 {[%emt 0:01:22]} Bxb5 {[%emt 0:00:04]} 57. Bc2 {[%emt 0:02:21]} Bd7 {[%emt 0:00:36]} 58. Bd1 {[%emt 0:00:44]} Be6 {[%emt 0:01:53]} 59. Be2 {[%emt 0:00:20]} Bd7 {[%emt 0:00:22]} 60. Bf1 {[%emt 0:00:28]} Be6 {[%emt 0:00:07]} 61. Bd3 {[%emt 0:02:02]} Bf5 {[%emt 0:00:43]} 62. Ba6 {[%emt 0:00:00]} Be6 {[%emt 0:00:00]} 63. Bf1 {[%emt 0:00:00]} Bf5 {[%emt 0:00:00]} 64. Ba6 {[%emt 0:00:00]} 1/2-1/2

[Event "DPEM German Cup 2024"]
[Site "Bad Wildungen"]
[Date "2024.08.02"]
[Round "4.1"]
[White "Poetsch, Hagen"]
[Black "Colpe, Malte"]
[Result "1-0"]
[Annotator "RC"]
[ECO "B27"]
[WhiteElo "2456"]
[BlackElo "2377"]
[PlyCount "70"]
[EventDate "2024.07.31"]
[EventCountry "GER"]
[SourceTitle "playchess.com"]
[Source "ChessBase"]
[SourceQuality "1"]
[TimeControl "40/5400+30:900+30"]

1. e4 {[%emt 0:02:24]} c5 {[%emt 0:00:06]} 2. Nf3 {[%emt 0:00:03]} g6 {[%emt 0:00:07]} 3. d4 {[%emt 0:03:16]} cxd4 {[%emt 0:00:08]} 4. Qxd4 {[%emt 0:00:04]} Nf6 {[%emt 0:00:11]} 5. Nc3 {[%emt 0:00:03]} Nc6 {[%emt 0:01:03]} 6. Qa4 {[%emt 0:00:04]} d6 {[%emt 0:00:43]} 7. e5 {[%emt 0:00:04]} dxe5 {[%emt 0:00:07]} 8. Nxe5 {[%emt 0:00:03]} Bg7 {[%emt 0:02:14]} 9. Bb5 {[%emt 0:01:17]} O-O {[%emt 0:03:04]} 10. Nxc6 {[%emt 0:00:05]} bxc6 {[%emt 0:00:06]} 11. Bxc6 {[%emt 0:00:07]} Bd7 {[%emt 0:00:58]} 12. O-O {[%emt 0:00:09]} Bxc6 {[%emt 0:15:09]} 13. Qxc6 {[%emt 0:00:07]} Qb8 {[%emt 0:08:20]} 14. Qf3 {[%emt 0:05:36]} Nd7 {[%emt 0:09:01]} 15. Rb1 {[%emt 0:06:33]} e6 {[%emt 0:11:09]} 16. Rd1 {[%emt 0:12:55]} Ne5 {[%emt 0:02:05]} 17. Qe2 {[%emt 0:03:33]} Nc6 {[%emt 0:06:08]} 18. Be3 {[%emt 0:03:20]} Bxc3 {[%emt 0:04:44]} 19. bxc3 {[%emt 0:00:23]} Qe5 {[%emt 0:00:28]} 20. Qc4 {[%emt 0:12:27]} Rac8 {[%emt 0:10:17]} 21. Rb5 {[%emt 0:02:47]} Qc7 {[%emt 0:02:15]} 22. Rc5 {[%emt 0:04:26]} Qb7 {[%emt 0:02:34]} 23. h3 {[%emt 0:03:42]} Ne7 {[%emt 0:07:43]} 24. Bh6 {[%emt 0:07:33]} Rxc5 {[%emt 0:10:13]} 25. Qxc5 {[%emt 0:00:05]} Re8 {[%emt 0:00:58]} 26. Qe5 {[%emt 0:09:47]} Nf5 {[%emt 0:00:23]} 27. Bg5 {[%emt 0:00:05]} h6 {[%emt 0:02:20]} 28. Bf6 {[%emt 0:00:32]} g5 {[%emt 0:01:03]} 29. Qe2 {[%emt 0:06:45]} Nh4 {[%emt 0:00:29]} 30. f4 {[%emt 0:00:32]} Qb6+ {[%emt 0:00:43]} 31. Kh2 {[%emt 0:02:39]} Qc5 {[%emt 0:00:29]} 32. fxg5 {[%emt 0:00:59]} hxg5 {[%emt 0:00:30]} 33. Qh5 {[%emt 0:00:30]} Ng6 {[%emt 0:00:28]} 34. Qh6 {[%emt 0:00:28]} Qf8 {[%emt 0:00:33]} 35. Qxg5 {[%emt 0:00:05]} Rc8 {[%emt 0:00:32]} 1-0

[Event "DPEM German Cup 2024"]
[Site "Bad Wildungen"]
[Date "2024.08.02"]
[Round "4.2"]
[White "Ehmann, Thilo"]
[Black "Khachatryan, Taron"]
[Result "1/2-1/2"]
[Annotator "ChessBase"]
[ECO "C77"]
[WhiteElo "2341"]
[BlackElo "2221"]
[PlyCount "39"]
[EventDate "2024.07.31"]
[EventCountry "GER"]
[SourceTitle "playchess.com"]
[Source "ChessBase"]
[SourceQuality "1"]
[TimeControl "40/5400+30:900+30"]

1. e4 {[%emt 0:00:02]} e5 {[%emt 0:00:34]} 2. Nf3 {[%emt 0:00:12]} Nc6 {[%emt 0:00:13]} 3. Bb5 {[%emt 0:00:06]} a6 {[%emt 0:00:57]} 4. Ba4 {[%emt 0:00:03]} b5 {[%emt 0:01:19]} 5. Bb3 {[%emt 0:00:03]} Nf6 {[%emt 0:00:43]} 6. d4 {[%emt 0:03:42]} Qe7 {[%emt 0:20:52]} 7. O-O {[%emt 0:09:56]} d6 {[%emt 0:01:40]} 8. Bd5 {[%emt 0:05:15]} Bb7 {[%emt 0:01:33]} 9. a4 {[%emt 0:01:55]} b4 {[%emt 0:02:14]} 10. c3 {[%emt 0:04:23]} Rb8 {[%emt 0:04:20]} 11. Bd2 {[%emt 0:07:33]} g6 {[%emt 0:01:52]} 12. cxb4 {[%emt 0:04:22]} Nxd4 {[%emt 0:06:39]} 13. Nxd4 {[%emt 0:01:24]} exd4 {[%emt 0:00:12]} 14. Qf3 {[%emt 0:06:24]} c6 {[%emt 0:06:33]} 15. Bg5 {[%emt 0:00:30]} Bg7 {[%emt 0:00:05]} 16. e5 {[%emt 0:00:46]} dxe5 {[%emt 0:00:15]} 17. Bxc6+ {[%emt 0:00:05]} Bxc6 {[%emt 0:02:50]} 18. Qxc6+ {[%emt 0:00:15]} Qd7 {[%emt 0:46:39]} 19. Qxa6 {[%emt 0:53:04]} Qe7 {[%emt 0:00:30]} 20. Qc6+ 1/2-1/2

[Event "DPEM German Cup 2024"]
[Site "Bad Wildungen"]
[Date "2024.08.02"]
[Round "4.3"]
[White "Strache, Michael"]
[Black "Cofmann, Veaceslav"]
[Result "1/2-1/2"]
[Annotator "ChessBase"]
[ECO "A25"]
[WhiteElo "2228"]
[BlackElo "2245"]
[PlyCount "105"]
[EventDate "2024.07.31"]
[EventCountry "GER"]
[SourceTitle "playchess.com"]
[Source "ChessBase"]
[SourceQuality "1"]
[TimeControl "40/5400+30:900+30"]

1. g3 {[%emt 0:01:19]} e5 {[%emt 0:01:11]} 2. Bg2 {[%emt 0:00:49]} Nc6 {[%emt 0:00:23]} 3. c4 {[%emt 0:05:21]} Nf6 {[%emt 0:01:51]} 4. Nc3 {[%emt 0:00:21]} Bc5 {[%emt 0:01:21]} 5. e3 {[%emt 0:00:34]} Nb4 {[%emt 0:02:53]} 6. d3 {[%emt 0:02:05]} d6 {[%emt 0:01:25]} 7. a3 {[%emt 0:00:43]} Nc6 {[%emt 0:00:05]} 8. Na4 {[%emt 0:05:56]} Bb6 {[%emt 0:01:15]} 9. Ne2 {[%emt 0:00:55]} Ne7 {[%emt 0:00:46]} 10. O-O {[%emt 0:02:11]} c6 {[%emt 0:00:19]} 11. Nxb6 {[%emt 0:00:32]} Qxb6 {[%emt 0:00:16]} 12. e4 {[%emt 0:06:25]} h6 {[%emt 0:04:31]} 13. h3 {[%emt 0:03:48]} d5 {[%emt 0:03:33]} 14. Be3 {[%emt 0:15:57]} d4 {[%emt 0:03:00]} 15. Bd2 {[%emt 0:00:08]} a5 {[%emt 0:00:50]} 16. b4 {[%emt 0:00:27]} a4 {[%emt 0:03:13]} 17. f4 {[%emt 0:03:32]} Ng6 {[%emt 0:00:09]} 18. Be1 {[%emt 0:11:00]} O-O {[%emt 0:03:46]} 19. Bf2 {[%emt 0:07:52]} Rd8 {[%emt 0:04:37]} 20. Qd2 {[%emt 0:00:21]} c5 {[%emt 0:02:08]} 21. Rab1 {[%emt 0:02:29]} Qc7 {[%emt 0:00:59]} 22. bxc5 {[%emt 0:01:13]} Nd7 {[%emt 0:02:02]} 23. Rb5 {[%emt 0:09:41]} Nxc5 {[%emt 0:01:04]} 24. f5 {[%emt 0:00:10]} Nf8 {[%emt 0:01:09]} 25. Rfb1 {[%emt 0:02:46]} f6 {[%emt 0:02:16]} 26. Nc1 {[%emt 0:00:34]} Bd7 {[%emt 0:02:50]} 27. R5b2 {[%emt 0:00:19]} Bc6 {[%emt 0:02:07]} 28. Na2 {[%emt 0:00:45]} Nb3 {[%emt 0:01:38]} 29. Qd1 {[%emt 0:03:11]} Qe7 {[%emt 0:01:31]} 30. Be1 {[%emt 0:00:16]} Nd7 {[%emt 0:03:10]} 31. Bb4 {[%emt 0:00:09]} Qf7 {[%emt 0:00:33]} 32. Nc1 {[%emt 0:00:58]} Nxc1 {[%emt 0:01:40]} 33. Rxc1 {[%emt 0:01:24]} Nb8 {[%emt 0:00:15]} 34. Bf3 {[%emt 0:01:09]} Na6 {[%emt 0:02:06]} 35. Bh5 {[%emt 0:00:42]} Qc7 {[%emt 0:00:53]} 36. Qd2 {[%emt 0:00:30]} Rdc8 {[%emt 0:06:57]} 37. Kf2 {[%emt 0:00:54]} b6 {[%emt 0:02:09]} 38. Rcb1 {[%emt 0:01:15]} Rab8 {[%emt 0:03:49]} 39. Bd1 {[%emt 0:01:24]} Be8 {[%emt 0:05:25]} 40. Rc2 {[%emt 0:05:09]} Nc5 {[%emt 0:01:13]} 41. Bxc5 {[%emt 0:07:57]} Qxc5 {[%emt 0:01:26]} 42. Qb4 {[%emt 0:00:07]} Qc7 {[%emt 0:02:23]} 43. Ke1 {[%emt 0:02:05]} Qa7 {[%emt 0:04:32]} 44. Qd2 {[%emt 0:04:09]} Kh7 {[%emt 0:02:45]} 45. Rb4 {[%emt 0:00:29]} b5 {[%emt 0:05:14]} 46. cxb5 {[%emt 0:00:49]} Rxc2 {[%emt 0:06:46]} 47. Bxc2 {[%emt 0:02:19]} Bxb5 {[%emt 0:00:45]} 48. Qd1 {[%emt 0:01:54]} Be8 {[%emt 0:01:31]} 49. Rxb8 {[%emt 0:01:55]} Qxb8 {[%emt 0:00:06]} 50. Bxa4 {[%emt 0:00:37]} Bxa4 {[%emt 0:00:08]} 51. Qxa4 {[%emt 0:00:04]} Qb1+ {[%emt 0:00:04]} 52. Kd2 {[%emt 0:00:09]} Qb2+ {[%emt 0:00:21]} 53. Qc2 {[%emt 0:01:41]} 1/2-1/2

[Event "DPEM German Cup 2024"]
[Site "Bad Wildungen"]
[Date "2024.08.02"]
[Round "4.4"]
[White "Fink, Christian"]
[Black "Namyslo, Holger"]
[Result "1-0"]
[Annotator "ChessBase"]
[ECO "C01"]
[WhiteElo "2113"]
[BlackElo "2131"]
[PlyCount "81"]
[EventDate "2024.07.31"]
[EventCountry "GER"]
[SourceTitle "playchess.com"]
[Source "ChessBase"]
[SourceQuality "1"]
[TimeControl "40/5400+30:900+30"]

1. e4 {[%emt 0:00:04]} e6 {[%emt 0:00:14]} 2. d4 {[%emt 0:04:12]} d5 {[%emt 0:00:05]} 3. exd5 {[%emt 0:00:14]} exd5 {[%emt 0:00:06]} 4. Qf3 {[%emt 0:00:06]} Nc6 {[%emt 0:00:33]} 5. c3 {[%emt 0:00:03]} Be6 {[%emt 0:00:47]} 6. Bd3 {[%emt 0:00:08]} Qd7 {[%emt 0:00:32]} 7. h3 {[%emt 0:00:05]} Nge7 {[%emt 0:02:00]} 8. Bf4 {[%emt 0:03:11]} Ng6 {[%emt 0:01:44]} 9. Bg3 {[%emt 0:01:41]} Be7 {[%emt 0:08:54]} 10. Nd2 {[%emt 0:01:26]} O-O {[%emt 0:03:02]} 11. Ne2 {[%emt 0:00:04]} a6 {[%emt 0:02:50]} 12. Nf1 {[%emt 0:08:21]} Bd6 {[%emt 0:02:21]} 13. Bxd6 {[%emt 0:04:23]} Qxd6 {[%emt 0:00:54]} 14. h4 {[%emt 0:00:15]} Nge7 {[%emt 0:06:12]} 15. Ne3 {[%emt 0:02:08]} Rfe8 {[%emt 0:05:38]} 16. g4 {[%emt 0:08:06]} Nc8 {[%emt 0:04:05]} 17. g5 {[%emt 0:07:04]} b5 {[%emt 0:01:01]} 18. Ng3 {[%emt 0:09:22]} Qf8 {[%emt 0:02:47]} 19. Nh5 {[%emt 0:06:19]} N6e7 {[%emt 0:07:14]} 20. O-O-O {[%emt 0:01:43]} Nd6 {[%emt 0:12:45]} 21. Rdg1 {[%emt 0:06:13]} Ne4 {[%emt 0:01:24]} 22. Nf6+ {[%emt 0:17:25]} gxf6 {[%emt 0:00:17]} 23. gxf6+ {[%emt 0:00:14]} Kh8 {[%emt 0:02:03]} 24. fxe7 {[%emt 0:04:12]} Qxe7 {[%emt 0:00:31]} 25. Bxe4 {[%emt 0:04:30]} dxe4 {[%emt 0:00:11]} 26. Qg3 {[%emt 0:00:08]} f6 {[%emt 0:02:25]} 27. d5 {[%emt 0:01:33]} Rg8 {[%emt 0:00:37]} 28. Qf4 {[%emt 0:00:28]} Rxg1+ {[%emt 0:03:44]} 29. Rxg1 {[%emt 0:00:00]} Rg8 {[%emt 0:00:36]} 30. Rd1 {[%emt 0:00:12]} Bc8 {[%emt 0:00:32]} 31. Rd4 {[%emt 0:01:05]} Re8 {[%emt 0:00:53]} 32. d6 {[%emt 0:00:15]} cxd6 {[%emt 0:00:17]} 33. Rxd6 {[%emt 0:02:26]} f5 {[%emt 0:03:01]} 34. h5 {[%emt 0:04:35]} Qf7 {[%emt 0:04:33]} 35. h6 {[%emt 0:01:21]} Qe7 {[%emt 0:03:34]} 36. Nd5 {[%emt 0:00:51]} Qf7 {[%emt 0:00:37]} 37. Qe3 {[%emt 0:00:41]} Be6 {[%emt 0:03:36]} 38. Qd4+ {[%emt 0:00:11]} Kg8 {[%emt 0:00:01]} 39. Nf6+ {[%emt 0:00:14]} Kf8 {[%emt 0:00:02]} 40. Nxe8 {[%emt 0:00:17]} Kxe8 {[%emt 0:00:04]} 41. Qh8+ {[%emt 0:15:18]} 1-0